[Event "WSCC 50 Women 2017"]
[Site "?"]
[Date "2017.11.10"]
[Round "4"]
[White "Berend, Elvira"]
[Black "Kasoshvili, Tsiala"]
[Result "1-0"]
[ECO "B06"]
[WhiteElo "2292"]
[BlackElo "2097"]
[PlyCount "113"]
[EventDate "2017.??.??"]
[EventType "swiss"]
[EventCountry "ITA"]
[SourceTitle "Acqui Terme"]
[TimeControl "40/5400+30:1800+30"]
[WhiteClock "0:34:38"]
[BlackClock "0:00:47"]

1. e4 {[%emt 0:00:00]} g6 {[%emt 0:00:26]} 2. d4 {[%emt 0:00:25]} Bg7 {[%emt 0:00:04]} 3. Bc4 {[%emt 0:01:04]} d6 {[%emt 0:00:58]} 4. Nf3 {[%emt 0:01:47]} Nf6 {[%emt 0:11:57]} 5. Qe2 {[%emt 0:00:19]} O-O {[%emt 0:01:28]} 6. O-O {[%emt 0:00:11]} c6 {[%emt 0:04:09]} 7. e5 {[%emt 0:04:54]} Ne8 {[%emt 0:12:02]} 8. Bb3 {[%emt 0:04:42]} Nc7 {[%emt 0:06:05]} 9. Ng5 {[%emt 0:16:23]} d5 {[%emt 0:04:29]} 10. f4 {[%emt 0:00:18]} f6 {[%emt 0:12:27]} 11. Nf3 b6 {[%emt 0:03:49]} 12. c4 {[%emt 0:07:56]} Kh8 {[%emt 0:12:09]} 13. Re1 {[%emt 0:04:45]} Bg4 {[%emt 0:02:40]} 14. cxd5 {[%emt 0:01:29]} cxd5 {[%emt 0:00:52]} 15. h3 {[%emt 0:01:27]} Be6 {[%emt 0:05:38]} 16. Nc3 {[%emt 0:01:23]} Nc6 {[%emt 0:00:30]} 17. Ba4 {[%emt 0:02:48]} Na5 {[%emt 0:00:49]} 18. Nh4 {[%emt 0:04:13]} f5 {[%emt 0:03:50]} 19. Nf3 {[%emt 0:00:18]} Bd7 {[%emt 0:02:54]} 20. Bc2 {[%emt 0:03:21]} b5 {[%emt 0:01:54]} 21. a3 {[%emt 0:03:42]} Nc4 {[%emt 0:01:01]} 22. Bd3 {[%emt 0:00:27]} Rb8 {[%emt 0:00:57]} 23. Ng5 {[%emt 0:02:13]} e6 {[%emt 0:03:25]} 24. Qf2 {[%emt 0:01:14]} Kg8 {[%emt 0:00:30]} 25. Nf3 {[%emt 0:02:22]} a5 {[%emt 0:02:02]} 26. Nd1 {[%emt 0:04:04]} Qe7 {[%emt 0:01:05]} 27. b3 Nb6 28. Bd2 {[%emt 0:04:19]} Ra8 {[%emt 0:01:28]} 29. Ne3 {[%emt 0:00:16]} Rfc8 {[%emt 0:00:58]} 30. g4 {[%emt 0:00:24]} Bf8 {[%emt 0:01:26]} 31. h4 {[%emt 0:01:41]} Be8 {[%emt 0:00:31]} 32. h5 {[%emt 0:00:26]} Nd7 {[%emt 0:01:25]} 33. hxg6 {[%emt 0:00:38]} hxg6 {[%emt 0:00:16]} 34. Qg3 {[%emt 0:02:18]} Bg7 {[%emt 0:00:24]} 35. Kf2 {[%emt 0:00:28]} Nf8 {[%emt 0:00:35]} 36. Rh1 {[%emt 0:05:40]} Ra7 {[%emt 0:02:16]} 37. gxf5 {[%emt 0:06:20]} exf5 {[%emt 0:00:46]} 38. Bxf5 {[%emt 0:00:41]} Rd8 {[%emt 0:00:30]} 39. Bd3 {[%emt 0:00:21]} Nce6 {[%emt 0:00:16]} 40. f5 {[%emt 0:00:11]} Nxd4 {[%emt 0:30:47]} 41. f6 {[%emt 0:30:12]} Bxf6 {[%emt 0:00:31]} 42. exf6 {[%emt 0:00:08]} Qxf6 {[%emt 0:00:03]} 43. Ng4 {[%emt 0:00:22]} Qxf3+ {[%emt 0:00:00]} 44. Qxf3 {[%emt 0:00:00]} Nxf3 {[%emt 0:00:00]} 45. Kxf3 {[%emt 0:00:00]} Bc6 {[%emt 0:00:00]} 46. Kg3 {[%emt 0:00:00]} d4 {[%emt 0:00:00]} 47. Rhf1 {[%emt 0:00:00]} a4 {[%emt 0:00:00]} 48. b4 {[%emt 0:00:00]} Rd6 {[%emt 0:00:00]} 49. Rae1 {[%emt 0:00:00]} Rb7 {[%emt 0:00:00]} 50. Bh6 {[%emt 0:00:00]} Nh7 {[%emt 0:00:00]} 51. Bf4 {[%emt 0:00:00]} Rd8 {[%emt 0:00:00]} 52. Be5 {[%emt 0:00:00]} Nf8 {[%emt 0:02:31]} 53. Rc1 {[%emt 0:00:00]} Rc8 {[%emt 0:02:30]} 54. Nf6+ {[%emt 0:00:00]} Kf7 {[%emt 0:01:03]} 55. Nd7+ {[%emt 0:00:00]} Ke6 {[%emt 0:01:02]} 56. Nxf8+ {[%emt 0:00:00]} Kxe5 {[%emt 0:00:15]} 57. Nxg6+ {[%emt 0:00:00]} 1-0

[Event "WSCC 50 Women 2017"]
[Site "?"]
[Date "2017.11.11"]
[Round "4"]
[White "Strutinskaia, Galina"]
[Black "Berend, Elvira"]
[Result "0-1"]
[ECO "A05"]
[WhiteElo "2246"]
[BlackElo "2292"]
[PlyCount "98"]
[EventDate "2017.??.??"]
[EventType "swiss"]
[EventCountry "ITA"]
[SourceTitle "Acqui Terme"]
[TimeControl "40/5400+30:1800+30"]
[WhiteClock "0:36:48"]
[BlackClock "0:07:49"]

1. Nf3 {[%emt 0:00:00]} Nf6 {[%emt 0:00:07]} 2. c4 {[%emt 0:00:00]} g6 {[%emt 0:00:07]} 3. Nc3 {[%emt 0:00:03]} Bg7 {[%emt 0:00:11]} 4. d4 {[%emt 0:01:03]} d6 {[%emt 0:00:15]} 5. e4 {[%emt 0:00:29]} O-O {[%emt 0:00:25]} 6. h3 {[%emt 0:00:40]} e5 {[%emt 0:04:08]} 7. d5 {[%emt 0:00:51]} a5 {[%emt 0:01:45]} 8. g4 {[%emt 0:00:27]} Na6 {[%emt 0:00:04]} 9. Be3 {[%emt 0:00:48]} c6 {[%emt 0:05:18]} 10. Be2 {[%emt 0:11:22]} cxd5 {[%emt 0:04:24]} 11. cxd5 {[%emt 0:00:14]} Nd7 {[%emt 0:09:31]} 12. h4 {[%emt 0:04:00]} Ndc5 {[%emt 0:00:10]} 13. Rg1 {[%emt 0:01:47]} a4 {[%emt 0:01:33]} 14. g5 {[%emt 0:04:18]} Bd7 {[%emt 0:02:00]} 15. Nd2 {[%emt 0:02:55]} a3 {[%emt 0:16:13]} 16. b3 {[%emt 0:02:20]} Qa5 {[%emt 0:02:32]} 17. Rc1 {[%emt 0:00:55]} b5 {[%emt 0:00:43]} 18. Kf1 {[%emt 0:00:20]} Rac8 {[%emt 0:00:31]} 19. Rg3 {[%emt 0:02:23]} Nb7 {[%emt 0:03:28]} 20. Ndb1 {[%emt 0:04:45]} b4 {[%emt 0:06:53]} 21. Bxa6 {[%emt 0:02:33]} Qxa6+ {[%emt 0:00:16]} 22. Ne2 {[%emt 0:00:06]} Rxc1 {[%emt 0:01:07]} 23. Bxc1 {[%emt 0:00:41]} Bb5 {[%emt 0:01:32]} 24. f3 {[%emt 0:03:38]} Nc5 {[%emt 0:05:08]} 25. Rg2 {[%emt 0:00:58]} Rc8 {[%emt 0:01:28]} 26. Be3 {[%emt 0:03:13]} Nd3 {[%emt 0:00:38]} 27. Kg1 {[%emt 0:00:34]} Nb2 {[%emt 0:02:25]} 28. Qe1 {[%emt 0:00:50]} Bd3 {[%emt 0:07:33]} 29. Ng3 {[%emt 0:01:40]} Bc2 {[%emt 0:02:40]} 30. Nd2 {[%emt 0:00:40]} Nd1 {[%emt 0:02:34]} 31. Ngf1 {[%emt 0:01:59]} Nc3 {[%emt 0:00:50]} 32. Qa1 {[%emt 0:00:40]} Bd3 {[%emt 0:00:14]} 33. Ng3 {[%emt 0:00:56]} Qb5 {[%emt 0:01:17]} 34. Ndf1 {[%emt 0:04:26]} Bf8 {[%emt 0:01:59]} 35. Nh2 {[%emt 0:01:19]} Be7 {[%emt 0:01:26]} 36. Ng4 {[%emt 0:00:27]} Bd8 {[%emt 0:01:53]} 37. Rd2 {[%emt 0:00:52]} Bb1 {[%emt 0:01:29]} 38. Nf2 {[%emt 0:06:05]} Bb6 {[%emt 0:01:01]} 39. Bxb6 {[%emt 0:02:52]} Qxb6 {[%emt 0:00:04]} 40. Nf1 {[%emt 0:00:08]} Bxa2 {[%emt 0:32:07]} 41. Rxa2 {[%emt 0:30:30]} Nxa2 {[%emt 0:00:06]} 42. Qxa2 {[%emt 0:00:10]} Qd4 {[%emt 0:00:09]} 43. Qe2 {[%emt 0:00:40]} Ra8 {[%emt 0:00:33]} 44. Ne3 {[%emt 0:00:55]} a2 {[%emt 0:00:32]} 45. Nc2 {[%emt 0:00:07]} a1=Q+ {[%emt 0:01:50]} 46. Nxa1 {[%emt 0:00:05]} Rxa1+ {[%emt 0:02:13]} 47. Kg2 {[%emt 0:00:12]} Rb1 {[%emt 0:00:20]} 48. Kg3 {[%emt 0:00:27]} Rb2 {[%emt 0:00:31]} 49. Qf1 {[%emt 0:00:19]} Qe3 {[%emt 0:02:58]} 0-1

[Event "WSCC 50 Women 2017"]
[Site "?"]
[Date "2017.11.11"]
[Round "4"]
[White "Birkholz, Olga"]
[Black "Liu, Shilan"]
[Result "0-1"]
[ECO "A00"]
[WhiteElo "2077"]
[BlackElo "2054"]
[PlyCount "146"]
[EventDate "2017.??.??"]
[EventType "swiss"]
[EventCountry "ITA"]
[SourceTitle "Acqui Terme"]
[TimeControl "40/5400+30:1800+30"]
[WhiteClock "0:03:00"]
[BlackClock "0:40:02"]

1. g3 {[%emt 0:00:00]} d5 {[%emt 0:00:37]} 2. Bg2 {[%emt 0:00:00]} Nf6 {[%emt 0:00:20]} 3. b3 {[%emt 0:00:00]} c5 {[%emt 0:00:16]} 4. Bb2 {[%emt 0:00:05]} e6 {[%emt 0:01:32]} 5. Nf3 Nc6 {[%emt 0:00:20]} 6. O-O {[%emt 0:00:44]} Be7 {[%emt 0:00:38]} 7. d3 {[%emt 0:02:32]} O-O {[%emt 0:00:12]} 8. Nbd2 {[%emt 0:04:32]} b6 {[%emt 0:12:44]} 9. Re1 {[%emt 0:05:37]} Bb7 10. Nf1 {[%emt 0:01:49]} Qc7 {[%emt 0:02:24]} 11. e3 {[%emt 0:00:59]} Rad8 {[%emt 0:04:19]} 12. N3d2 {[%emt 0:10:12]} e5 {[%emt 0:05:03]} 13. g4 d4 {[%emt 0:00:35]} 14. e4 {[%emt 0:02:18]} Bc8 {[%emt 0:01:51]} 15. h3 {[%emt 0:07:49]} Ne8 {[%emt 0:01:46]} 16. Ng3 {[%emt 0:01:02]} g6 17. Nf3 {[%emt 0:02:15]} f6 {[%emt 0:03:30]} 18. Bc1 {[%emt 0:03:07]} Rf7 {[%emt 0:02:14]} 19. Bh6 {[%emt 0:02:38]} Nd6 {[%emt 0:03:04]} 20. Bd2 {[%emt 0:03:38]} Be6 {[%emt 0:09:35]} 21. a4 {[%emt 0:04:01]} Rc8 {[%emt 0:02:26]} 22. Qe2 {[%emt 0:06:03]} Qd8 {[%emt 0:04:38]} 23. Nh2 {[%emt 0:02:58]} Nb4 {[%emt 0:07:24]} 24. Rec1 {[%emt 0:05:07]} Ne8 {[%emt 0:02:34]} 25. Nf3 {[%emt 0:13:46]} Bf8 {[%emt 0:00:13]} 26. g5 {[%emt 0:01:36]} Bg7 {[%emt 0:00:23]} 27. Qe1 {[%emt 0:04:29]} a5 {[%emt 0:03:59]} 28. Qe2 Nc7 29. gxf6 {[%emt 0:07:07]} Bxf6 {[%emt 0:00:32]} 30. Kh2 h5 31. Bxb4 {[%emt 0:04:53]} cxb4 {[%emt 0:04:58]} 32. Qd2 {[%emt 0:00:44]} Kh7 33. Rg1 {[%emt 0:00:52]} h4 {[%emt 0:03:10]} 34. Ne2 Ne8 {[%emt 0:01:18]} 35. Bh1 {[%emt 0:01:32]} Ng7 {[%emt 0:00:21]} 36. Rg5 {[%emt 0:01:11]} Rxc2 {[%emt 0:01:36]} 37. Qxc2 {[%emt 0:00:29]} Bxg5 {[%emt 0:00:06]} 38. Rg1 {[%emt 0:00:32]} Bh6 {[%emt 0:03:33]} 39. Bg2 {[%emt 0:00:28]} Rc7 {[%emt 0:01:09]} 40. Qd1 {[%emt 0:00:13]} Qf6 {[%emt 0:30:08]} 41. Rf1 {[%emt 0:32:17]} Nh5 {[%emt 0:00:41]} 42. Kg1 {[%emt 0:00:00]} Nf4 {[%emt 0:00:00]} 43. Nxf4 {[%emt 0:00:00]} Bxf4 {[%emt 0:00:00]} 44. Nd2 {[%emt 0:00:00]} Bxd2 {[%emt 0:00:00]} 45. Qxd2 {[%emt 0:00:00]} Qf4 {[%emt 0:00:00]} 46. Qxf4 {[%emt 0:00:00]} exf4 {[%emt 0:00:00]} 47. e5 {[%emt 0:00:00]} Rc3 {[%emt 0:00:00]} 48. Be4 {[%emt 0:00:00]} Bxh3 {[%emt 0:00:00]} 49. Re1 {[%emt 0:00:00]} Be6 {[%emt 0:00:00]} 50. Kg2 {[%emt 0:00:00]} Rxb3 {[%emt 0:00:00]} 51. Kf3 {[%emt 0:00:00]} Kh6 {[%emt 0:00:00]} 52. Kxf4 {[%emt 0:00:00]} g5+ {[%emt 0:00:00]} 53. Kf3 {[%emt 0:00:00]} Rc3 {[%emt 0:00:00]} 54. Bb7 {[%emt 0:00:00]} b3 {[%emt 0:00:00]} 55. Ke4 {[%emt 0:00:00]} b2 {[%emt 0:00:00]} 56. Rb1 {[%emt 0:00:00]} Rc2 {[%emt 0:00:00]} 57. Bd5 {[%emt 0:00:00]} Bxd5+ {[%emt 0:00:00]} 58. Kxd5 {[%emt 0:00:00]} Kg6 {[%emt 0:00:00]} 59. Kd6 {[%emt 0:05:24]} h3 {[%emt 0:00:00]} 60. e6 {[%emt 0:00:41]} Re2 {[%emt 0:00:00]} 61. f4 {[%emt 0:05:07]} gxf4 {[%emt 0:00:00]} 62. Rf1 {[%emt 0:00:57]} b1=Q {[%emt 0:00:00]} 63. Rxb1 {[%emt 0:00:05]} Kf6 {[%emt 0:00:00]} 64. Rh1 {[%emt 0:01:24]} Rxe6+ {[%emt 0:00:00]} 65. Kd5 {[%emt 0:00:03]} Re3 {[%emt 0:00:00]} 66. Kxd4 {[%emt 0:00:02]} Kf5 {[%emt 0:00:00]} 67. Rb1 {[%emt 0:00:39]} h2 {[%emt 0:00:00]} 68. Kc4 {[%emt 0:00:38]} Rh3 {[%emt 0:00:00]} 69. d4 {[%emt 0:00:26]} h1=Q {[%emt 0:00:00]} 70. Rxh1 {[%emt 0:00:15]} Rxh1 {[%emt 0:00:00]} 71. Kb5 {[%emt 0:00:08]} Rb1+ {[%emt 0:00:00]} 72. Kc6 {[%emt 0:00:00]} f3 {[%emt 0:00:00]} 73. d5 {[%emt 0:00:06]} f2 {[%emt 0:00:00]} 0-1

[Event "WSCC 50 Women 2017"]
[Site "?"]
[Date "2017.11.10"]
[Round "4"]
[White "Liu, Shilan"]
[Black "Strutinskaia, Galina"]
[Result "1/2-1/2"]
[ECO "B22"]
[WhiteElo "2054"]
[BlackElo "2246"]
[PlyCount "47"]
[EventDate "2017.??.??"]
[EventType "swiss"]
[EventCountry "ITA"]
[SourceTitle "Acqui Terme"]
[TimeControl "40/5400+30:1800+30"]
[WhiteClock "0:42:18"]
[BlackClock "0:40:38"]

1. e4 {[%emt 0:00:00]} c5 {[%emt 0:00:15]} 2. c3 {[%emt 0:00:00]} b6 {[%emt 0:00:04]} 3. d4 {[%emt 0:00:00]} Bb7 {[%emt 0:00:05]} 4. d5 {[%emt 0:05:31]} Nf6 {[%emt 0:05:36]} 5. Qc2 {[%emt 0:02:26]} g6 {[%emt 0:00:17]} 6. c4 d6 7. Nc3 {[%emt 0:00:46]} Bg7 {[%emt 0:00:57]} 8. Be2 {[%emt 0:01:46]} Na6 {[%emt 0:01:09]} 9. Bg5 {[%emt 0:01:26]} Nc7 {[%emt 0:01:47]} 10. Nf3 O-O {[%emt 0:08:17]} 11. O-O {[%emt 0:01:56]} a6 {[%emt 0:06:11]} 12. Rfe1 {[%emt 0:05:46]} Rb8 {[%emt 0:06:02]} 13. Rad1 {[%emt 0:04:18]} Bc8 {[%emt 0:00:25]} 14. e5 {[%emt 0:00:57]} Nfe8 {[%emt 0:00:29]} 15. exd6 {[%emt 0:01:54]} Nxd6 {[%emt 0:02:08]} 16. Bd3 {[%emt 0:02:28]} Re8 {[%emt 0:01:49]} 17. h3 {[%emt 0:03:11]} b5 18. b3 bxc4 {[%emt 0:03:18]} 19. bxc4 {[%emt 0:00:32]} a5 {[%emt 0:04:19]} 20. Bf4 {[%emt 0:16:12]} Bd7 {[%emt 0:15:41]} 21. Rb1 {[%emt 0:05:19]} Qc8 {[%emt 0:01:25]} 22. Bxd6 exd6 {[%emt 0:00:38]} 23. Ne4 {[%emt 0:00:40]} Qa6 24. Rxb8 {[%emt 0:04:34]} 1/2-1/2

[Event "WSCC 50 Women 2017"]
[Site "?"]
[Date "2017.11.11"]
[Round "4"]
[White "Lauterbach, Ingrid"]
[Black "Mednikova, Svetlana"]
[Result "1-0"]
[ECO "C00"]
[WhiteElo "2007"]
[BlackElo "2128"]
[PlyCount "113"]
[EventDate "2017.??.??"]
[EventType "swiss"]
[EventCountry "ITA"]
[SourceTitle "Acqui Terme"]
[TimeControl "40/5400+30:1800+30"]

1. e4 e6 2. d3 d5 3. Nd2 c5 4. g3 Nc6 5. Bg2 Nf6 6. Ngf3 g6 7. O-O Bg7 8. c3 O-O 9. exd5 exd5 10. Nb3 b6 11. d4 c4 12. Nbd2 Bf5 13. Re1 Re8 14. Rxe8+ Qxe8 15. Ne5 Nxe5 16. dxe5 Ne4 17. f4 Nxd2 18. Bxd2 Rd8 19. Be3 Bd3 20. Bd4 Qc6 21. Qd2 a5 22. Qe3 Bf8 23. b3 Bc5 24. bxc4 Bxd4 25. cxd4 Bxc4 26. f5 Re8 27. Qh6 Kh8 28. f6 Rg8 29. Bh3 Qe8 30. Re1 Qf8 31. Qd2 Qb4 32. Qf2 h6 33. Qe3 Kh7 34. a3 Qb3 35. Qf2 Qa2 36. Qf4 g5 37. Qf5+ Kh8 38. e6 Qd2 39. Qe5 Bd3 40. e7 Be4 41. Rxe4 dxe4 42. Qxe4 Qd1+ 43. Bf1 Re8 44. Kf2 Qd2+ 45. Be2 Qb2 46. Qd5 Qd2 47. Qd7 Kh7 48. Qf5+ Kg8 49. Qd5 Qb2 50. Qd7 Kh7 51. Qf5+ Kg8 52. Qd3 Qa1 53. Kg2 Qa2 54. Qb5 Kh7 55. Kf2 Kg6 56. Qxe8 Kxf6 57. Qd8 1-0

[Event "WSCC 50 Women 2017"]
[Site "?"]
[Date "2017.11.10"]
[Round "4"]
[White "Milligan, Helen"]
[Black "Birkholz, Olga"]
[Result "1/2-1/2"]
[ECO "B06"]
[WhiteElo "1951"]
[BlackElo "2077"]
[PlyCount "264"]
[EventDate "2017.??.??"]
[EventType "swiss"]
[EventCountry "ITA"]
[SourceTitle "Acqui Terme"]
[TimeControl "40/5400+30:1800+30"]
[WhiteClock "0:13:30"]
[BlackClock "0:03:11"]

1. e4 {[%emt 0:00:00]} d6 {[%emt 0:00:08]} 2. d4 {[%emt 0:00:00]} g6 {[%emt 0:00:01]} 3. Nc3 {[%emt 0:00:12]} Bg7 {[%emt 0:00:04]} 4. Be3 {[%emt 0:00:44]} Nf6 {[%emt 0:00:23]} 5. h3 {[%emt 0:01:18]} c6 {[%emt 0:01:12]} 6. a4 {[%emt 0:04:03]} Qa5 {[%emt 0:03:01]} 7. Bd3 {[%emt 0:03:49]} O-O {[%emt 0:02:04]} 8. Nf3 {[%emt 0:02:03]} Na6 {[%emt 0:01:15]} 9. O-O {[%emt 0:01:18]} Nb4 {[%emt 0:02:31]} 10. Be2 {[%emt 0:01:37]} Qc7 {[%emt 0:01:12]} 11. a5 {[%emt 0:07:58]} Bd7 {[%emt 0:10:51]} 12. Nd2 {[%emt 0:07:16]} b6 {[%emt 0:05:08]} 13. Na4 {[%emt 0:10:55]} b5 {[%emt 0:02:44]} 14. Nc3 {[%emt 0:02:13]} Rab8 {[%emt 0:04:32]} 15. Bf3 {[%emt 0:01:54]} Na6 {[%emt 0:06:02]} 16. Nb3 {[%emt 0:02:26]} c5 {[%emt 0:03:24]} 17. d5 {[%emt 0:03:18]} b4 {[%emt 0:05:28]} 18. Ne2 {[%emt 0:01:22]} Bb5 {[%emt 0:00:46]} 19. Re1 {[%emt 0:00:19]} Nd7 {[%emt 0:00:32]} 20. Qc1 {[%emt 0:01:02]} Ne5 {[%emt 0:00:52]} 21. Nd2 {[%emt 0:01:10]} Bd7 {[%emt 0:11:50]} 22. Kh2 {[%emt 0:04:07]} c4 {[%emt 0:08:21]} 23. Nd4 {[%emt 0:02:25]} Nxf3+ {[%emt 0:01:55]} 24. N2xf3 {[%emt 0:02:00]} Nc5 {[%emt 0:00:18]} 25. Bh6 {[%emt 0:01:46]} b3 {[%emt 0:03:14]} 26. Bxg7 {[%emt 0:05:32]} Kxg7 {[%emt 0:00:08]} 27. Re3 {[%emt 0:00:23]} bxc2 {[%emt 0:02:50]} 28. Qxc2 {[%emt 0:00:30]} Na6 {[%emt 0:01:19]} 29. Qc3 {[%emt 0:01:54]} f6 {[%emt 0:00:20]} 30. Ng5 {[%emt 0:04:38]} Nc5 {[%emt 0:00:22]} 31. Ngf3 {[%emt 0:07:30]} Rfc8 {[%emt 0:01:46]} 32. Nd2 {[%emt 0:02:04]} e5 {[%emt 0:03:47]} 33. dxe6 {[%emt 0:02:05]} Nxe6 {[%emt 0:00:10]} 34. Nxe6+ {[%emt 0:00:52]} Bxe6 {[%emt 0:00:01]} 35. Kg1 {[%emt 0:01:37]} Qb7 {[%emt 0:04:15]} 36. Rb1 {[%emt 0:01:25]} Qb4 {[%emt 0:00:42]} 37. Qd4 {[%emt 0:01:40]} Qc5 {[%emt 0:04:26]} 38. Qc3 {[%emt 0:01:16]} Qb4 {[%emt 0:01:33]} 39. Qd4 {[%emt 0:00:14]} Qc5 {[%emt 0:00:15]} 40. Qc3 {[%emt 0:00:14]} Rb4 {[%emt 0:32:17]} 41. Rf3 {[%emt 0:32:18]} Rf8 {[%emt 0:01:31]} 42. Ra1 {[%emt 0:06:10]} a6 {[%emt 0:02:56]} 43. Ra3 {[%emt 0:05:02]} Rb7 {[%emt 0:03:32]} 44. Ra4 {[%emt 0:00:00]} Qb5 {[%emt 0:00:00]} 45. Ra2 {[%emt 0:00:00]} Rff7 {[%emt 0:00:00]} 46. Nf1 {[%emt 0:00:00]} Qc5 {[%emt 0:00:00]} 47. Nd2 {[%emt 0:00:00]} Rb8 {[%emt 0:00:00]} 48. Ra4 {[%emt 0:00:00]} Qb5 {[%emt 0:00:00]} 49. Ra2 {[%emt 0:00:00]} d5 {[%emt 0:00:00]} 50. exd5 {[%emt 0:00:00]} Qxd5 {[%emt 0:00:00]} 51. Ra4 {[%emt 0:00:00]} Rd8 {[%emt 0:00:00]} 52. Nf1 {[%emt 0:00:00]} Qd1 {[%emt 0:00:00]} 53. Qa3 {[%emt 0:00:00]} Bf5 {[%emt 0:00:00]} 54. Qa1 {[%emt 0:00:00]} Bc2 {[%emt 0:00:00]} 55. Raa3 {[%emt 0:00:00]} Bb3 {[%emt 0:00:46]} 56. Kh2 {[%emt 0:00:00]} Qe2 {[%emt 0:00:25]} 57. Ng3 {[%emt 0:00:00]} Qc2 {[%emt 0:00:29]} 58. Qe1 {[%emt 0:00:43]} Qxb2 {[%emt 0:01:03]} 59. Ra1 {[%emt 0:00:06]} Bc2 {[%emt 0:01:03]} 60. Rc1 {[%emt 0:00:46]} Bd3 {[%emt 0:00:57]} 61. Re3 {[%emt 0:01:39]} Rb8 {[%emt 0:01:19]} 62. Re7 {[%emt 0:01:11]} Qb4 {[%emt 0:00:23]} 63. Rxf7+ {[%emt 0:00:10]} Kxf7 {[%emt 0:00:01]} 64. Qe3 {[%emt 0:00:15]} Qe7 {[%emt 0:00:27]} 65. Qd4 {[%emt 0:00:26]} Rd8 {[%emt 0:00:26]} 66. Qb6 {[%emt 0:00:16]} Qd6 {[%emt 0:00:26]} 67. Qe3 {[%emt 0:00:37]} Qd4 {[%emt 0:00:50]} 68. Qh6 {[%emt 0:00:22]} Kg8 {[%emt 0:00:40]} 69. Re1 {[%emt 0:00:11]} Qd6 {[%emt 0:00:25]} 70. Qd2 {[%emt 0:01:23]} Rb8 {[%emt 0:00:54]} 71. Kg1 {[%emt 0:00:21]} Qb4 {[%emt 0:00:34]} 72. Qe3 {[%emt 0:00:22]} Qxe1+ {[%emt 0:01:17]} 73. Qxe1 {[%emt 0:00:11]} Rb1 {[%emt 0:00:00]} 74. Qxb1 {[%emt 0:00:13]} Bxb1 {[%emt 0:00:01]} 75. Kf1 {[%emt 0:00:17]} Kf7 {[%emt 0:00:08]} 76. Ke1 {[%emt 0:00:18]} Ke6 {[%emt 0:00:30]} 77. Kd2 {[%emt 0:00:06]} Kd5 {[%emt 0:00:25]} 78. Kc3 {[%emt 0:00:35]} Kc5 {[%emt 0:00:57]} 79. Ne2 {[%emt 0:00:31]} Bd3 {[%emt 0:00:36]} 80. Nf4 {[%emt 0:01:32]} Bf1 {[%emt 0:01:39]} 81. h4 {[%emt 0:00:22]} Kb5 {[%emt 0:00:22]} 82. Nd5 {[%emt 0:00:21]} Bxg2 {[%emt 0:01:39]} 83. Nxf6 {[%emt 0:00:06]} h5 {[%emt 0:00:23]} 84. f4 {[%emt 0:00:13]} Bh3 {[%emt 0:00:30]} 85. Nd5 {[%emt 0:01:40]} Kxa5 {[%emt 0:01:08]} 86. Ne7 {[%emt 0:00:11]} Bf5 {[%emt 0:00:21]} 87. Kxc4 {[%emt 0:00:13]} Kb6 {[%emt 0:00:22]} 88. Nd5+ {[%emt 0:00:27]} Kc6 {[%emt 0:00:29]} 89. Nb4+ {[%emt 0:00:08]} Kb7 {[%emt 0:00:28]} 90. Kc5 {[%emt 0:00:17]} a5 {[%emt 0:00:22]} 91. Nd5 {[%emt 0:00:50]} a4 {[%emt 0:00:39]} 92. Kb4 {[%emt 0:00:06]} Kc6 {[%emt 0:00:24]} 93. Ne3 {[%emt 0:00:12]} a3 {[%emt 0:00:22]} 94. Kxa3 {[%emt 0:00:06]} Kc5 {[%emt 0:00:02]} 95. Kb2 {[%emt 0:02:17]} Kd4 {[%emt 0:00:11]} 96. Ng2 {[%emt 0:00:43]} Bh3 {[%emt 0:00:54]} 97. Ne1 {[%emt 0:00:33]} Ke4 {[%emt 0:00:29]} 98. Kc2 {[%emt 0:00:05]} Kxf4 {[%emt 0:00:05]} 99. Kd2 {[%emt 0:00:06]} Kg4 {[%emt 0:02:15]} 100. Ke3 {[%emt 0:00:05]} Kxh4 {[%emt 0:00:12]} 101. Nf3+ {[%emt 0:00:10]} Kg4 {[%emt 0:00:02]} 102. Kf2 {[%emt 0:00:16]} Kf5 {[%emt 0:00:52]} 103. Kg3 {[%emt 0:00:13]} Bf1 {[%emt 0:00:28]} 104. Kh4 {[%emt 0:00:22]} Ba6 {[%emt 0:00:14]} 105. Ng5 {[%emt 0:00:34]} Bb7 {[%emt 0:00:23]} 106. Nh7 {[%emt 0:01:41]} Bd5 {[%emt 0:00:08]} 107. Ng5 {[%emt 0:00:09]} Ke5 {[%emt 0:00:21]} 108. Nh7 {[%emt 0:00:34]} Bg8 {[%emt 0:00:35]} 109. Ng5 {[%emt 0:00:07]} Kf5 {[%emt 0:00:33]} 110. Nf3 {[%emt 0:00:30]} Kf4 {[%emt 0:00:17]} 111. Ng5 {[%emt 0:00:04]} Bc4 {[%emt 0:00:25]} 112. Nh3+ {[%emt 0:00:20]} Ke5 {[%emt 0:00:22]} 113. Ng5 {[%emt 0:00:08]} Bd3 {[%emt 0:00:51]} 114. Nh7 {[%emt 0:01:20]} Kf4 {[%emt 0:00:20]} 115. Ng5 {[%emt 0:00:07]} Bf1 {[%emt 0:00:49]} 116. Ne6+ {[%emt 0:00:15]} Ke5 {[%emt 0:00:15]} 117. Ng5 {[%emt 0:00:06]} Bg2 {[%emt 0:00:35]} 118. Nf7+ {[%emt 0:00:16]} Kf6 {[%emt 0:00:59]} 119. Ng5 {[%emt 0:00:07]} Kg7 {[%emt 0:01:07]} 120. Ne6+ {[%emt 0:00:11]} Kf6 {[%emt 0:00:29]} 121. Ng5 {[%emt 0:00:10]} Bd5 {[%emt 0:00:24]} 122. Nh7+ {[%emt 0:00:21]} Ke5 {[%emt 0:00:09]} 123. Ng5 {[%emt 0:00:11]} Be6 {[%emt 0:00:19]} 124. Nf3+ {[%emt 0:00:08]} Kf4 {[%emt 0:00:18]} 125. Ng5 {[%emt 0:00:07]} Bf5 {[%emt 0:00:22]} 126. Nf7 {[%emt 0:00:50]} Bg4 {[%emt 0:00:29]} 127. Ng5 {[%emt 0:00:13]} Kf5 {[%emt 0:00:50]} 128. Nh7 {[%emt 0:00:18]} Ke6 {[%emt 0:00:13]} 129. Ng5+ {[%emt 0:00:11]} Ke7 {[%emt 0:00:19]} 130. Ne4 {[%emt 0:00:08]} Ke6 {[%emt 0:00:25]} 131. Ng5+ {[%emt 0:00:05]} Ke7 {[%emt 0:00:42]} 132. Ne4 {[%emt 0:00:07]} Ke6 {[%emt 0:00:28]} 1/2-1/2